[Event "12th Arad Open 2019"]
[Site "Arad"]
[Date "2019.07.26"]
[Round "4.37"]
[White "Anghel, Iulian-Mihai"]
[Black "Mozes, Ervin"]
[Result "0-1"]
[ECO "A80"]
[WhiteElo "1900"]
[BlackElo "2121"]
[Annotator "NA"]
[PlyCount "60"]
[EventDate "2019.07.24"]
[EventType "swiss"]
[EventCountry "ROU"]
[SourceTitle "playchess.com"]
[Source "ChessBase"]
[SourceQuality "1"]
[TimeControl "40/5400+30:900+30"]

1. d4 {[%emt 0:00:00]} f5 {[%emt 0:00:02]} 2. Nf3 {[%emt 0:00:09]} Nf6 {[%emt 0:00:33]} 3. c4 {[%emt 0:02:47]} d6 {[%emt 0:00:34]} 4. Nc3 {[%emt 0:01:27]} g6 {[%emt 0:01:05]} 5. Bg5 {[%emt 0:03:05]} Bg7 {[%emt 0:02:15]} 6. Bxf6 {[%emt 0:02:27]} Bxf6 {[%emt 0:00:42]} 7. e4 {[%emt 0:02:19]} Nc6 {[%emt 0:12:32]} 8. Be2 {[%emt 0:03:12]} O-O {[%emt 0:07:37]} 9. Qd2 {[%emt 0:07:26]} e5 {[%emt 0:02:03]} 10. d5 {[%emt 0:02:51]} Nd4 {[%emt 0:00:52]} 11. h4 {[%emt 0:04:08]} fxe4 {[%emt 0:14:43]} 12. Nxe4 {[%emt 0:06:05]} Nxe2 {[%emt 0:00:43]} 13. Qxe2 {[%emt 0:00:54]} Bg4 {[%emt 0:00:11]} 14. Qe3 {[%emt 0:09:54]} Bxf3 {[%emt 0:09:41]} 15. gxf3 {[%emt 0:05:54]} Bxh4 16. O-O-O {[%emt 0:08:08]} Rf4 {[%emt 0:07:42]} 17. Rh3 {[%emt 0:06:09]} Qe7 {[%emt 0:06:25]} 18. Rdh1 {[%emt 0:07:46]} b6 {[%emt 0:01:54]} 19. Kb1 {[%emt 0:01:25]} Raf8 {[%emt 0:01:18]} 20. Qd3 {[%emt 0:02:19]} R8f5 {[%emt 0:03:12]} 21. R1h2 {[%emt 0:06:02]} Kf8 {[%emt 0:04:55]} 22. Qf1 {[%emt 0:04:14]} h5 {[%emt 0:07:59]} 23. Qh1 {[%emt 0:01:57]} g5 {[%emt 0:02:40]} 24. Qg2 {[%emt 0:06:58]} Qf7 {[%emt 0:03:48]} 25. Rxh4 {[%emt 0:03:30]} Rxh4 {[%emt 0:00:47]} 26. Rxh4 {[%emt 0:00:26]} gxh4 {[%emt 0:00:02]} 27. Ng5 {[%emt 0:00:15]} Qg6 {[%emt 0:00:48]} 28. Ne6+ {[%emt 0:00:11]} Kf7 {[%emt 0:00:02]} 29. Qh2 {[%emt 0:00:56]} h3 {[%emt 0:02:29]} 30. Qh1 {[%emt 0:00:38]} Rg5+ 0-1

[Event "12th Arad Open 2019"]
[Site "Arad"]
[Date "2019.07.26"]
[Round "4.38"]
[White "Popa-Matei, Viorel-Ovidiu"]
[Black "Nicora, Cristi"]
[Result "1-0"]
[ECO "B21"]
[WhiteElo "1895"]
[BlackElo "2102"]
[Annotator "NA"]
[PlyCount "87"]
[EventDate "2019.07.24"]
[EventType "swiss"]
[EventCountry "ROU"]
[SourceTitle "playchess.com"]
[Source "ChessBase"]
[SourceQuality "1"]
[TimeControl "40/5400+30:900+30"]

1. e4 {[%emt 0:07:05]} c5 {[%emt 0:00:00]} 2. d4 {[%emt 0:00:20]} cxd4 {[%emt 0:00:00]} 3. c3 {[%emt 0:00:03]} dxc3 {[%emt 0:00:00]} 4. Nxc3 {[%emt 0:00:04]} Nc6 {[%emt 0:00:00]} 5. Bc4 {[%emt 0:00:34]} e6 {[%emt 0:01:11]} 6. Nf3 {[%emt 0:00:14]} a6 {[%emt 0:00:08]} 7. Qe2 {[%emt 0:00:32]} b5 {[%emt 0:00:37]} 8. Bb3 {[%emt 0:00:18]} Bb7 {[%emt 0:00:13]} 9. O-O {[%emt 0:00:14]} Nge7 {[%emt 0:01:10]} 10. Rd1 {[%emt 0:00:20]} Ng6 {[%emt 0:03:33]} 11. Be3 {[%emt 0:06:45]} Be7 {[%emt 0:01:39]} 12. Rd2 {[%emt 0:04:35]} O-O {[%emt 0:01:50]} 13. Rad1 {[%emt 0:00:11]} Bc8 {[%emt 0:09:15]} 14. g3 {[%emt 0:08:23]} Qa5 {[%emt 0:01:31]} 15. h4 {[%emt 0:12:19]} d6 {[%emt 0:00:33]} 16. Bg5 {[%emt 0:23:25]} f6 {[%emt 0:00:30]} 17. h5 {[%emt 0:10:44]} Nge5 {[%emt 0:01:40]} 18. Nxe5 {[%emt 0:00:40]} Nxe5 {[%emt 0:00:38]} 19. Bf4 {[%emt 0:06:05]} Kh8 {[%emt 0:00:20]} 20. Kg2 {[%emt 0:04:58]} b4 {[%emt 0:00:27]} 21. Nb1 {[%emt 0:01:22]} Bd7 {[%emt 0:01:23]} 22. Bxe5 {[%emt 0:06:37]} fxe5 {[%emt 0:01:48]} 23. Rc2 {[%emt 0:00:46]} Bb5 {[%emt 0:13:51]} 24. Qg4 {[%emt 0:01:29]} Rf6 {[%emt 0:03:44]} 25. Nd2 {[%emt 0:01:38]} d5 {[%emt 0:16:18]} 26. exd5 {[%emt 0:01:43]} Bd3 {[%emt 0:03:12]} 27. Nc4 {[%emt 0:01:27]} Qxd5+ {[%emt 0:00:14]} 28. Kg1 {[%emt 0:00:02]} Raf8 {[%emt 0:06:22]} 29. Ne3 {[%emt 0:00:31]} Qb5 {[%emt 0:01:11]} 30. Rcd2 {[%emt 0:00:34]} e4 {[%emt 0:00:31]} 31. Kg2 {[%emt 0:00:48]} Bc5 {[%emt 0:00:32]} 32. Qg5 {[%emt 0:00:37]} Qb6 {[%emt 0:00:48]} 33. Rc1 {[%emt 0:00:36]} Bd4 {[%emt 0:01:41]} 34. Ng4 {[%emt 0:00:30]} Rf5 {[%emt 0:01:28]} 35. Qe7 {[%emt 0:00:02]} Bxf2 {[%emt 0:02:36]} 36. h6 {[%emt 0:00:31]} Bd4 {[%emt 0:00:30]} 37. Rc7 {[%emt 0:00:09]} Bf1+ {[%emt 0:08:12]} 38. Kh1 {[%emt 0:00:38]} Rh5+ {[%emt 0:00:02]} 39. Nh2 {[%emt 0:00:02]} Rg8 {[%emt 0:00:14]} 40. Bxe6 {[%emt 0:00:00]} Rg5 {[%emt 0:02:25]} 41. Rxd4 {[%emt 0:09:53]} Bg2+ {[%emt 0:25:28]} 42. Kxg2 {[%emt 0:00:11]} Qb5 {[%emt 0:02:05]} 43. hxg7+ {[%emt 0:00:55]} R5xg7 {[%emt 0:00:03]} 44. Qxg7+ {[%emt 0:00:19]} 1-0

[Event "12th Arad Open 2019"]
[Site "Arad"]
[Date "2019.07.26"]
[Round "4.39"]
[White "Sarmir, Milos"]
[Black "Veress, Armand"]
[Result "0-1"]
[ECO "A04"]
[WhiteElo "2098"]
[BlackElo "1827"]
[Annotator "NA"]
[PlyCount "66"]
[EventDate "2019.07.24"]
[EventType "swiss"]
[EventCountry "ROU"]
[SourceTitle "playchess.com"]
[Source "ChessBase"]
[SourceQuality "1"]
[TimeControl "40/5400+30:900+30"]

1. Nf3 {[%emt 0:00:00]} c5 {[%emt 0:00:13]} 2. c4 {[%emt 0:00:03]} Nc6 {[%emt 0:00:28]} 3. e3 {[%emt 0:00:31]} e5 {[%emt 0:00:54]} 4. Nc3 {[%emt 0:00:22]} d6 {[%emt 0:02:13]} 5. Be2 {[%emt 0:00:30]} Nf6 {[%emt 0:01:39]} 6. O-O {[%emt 0:03:05]} Be7 {[%emt 0:01:55]} 7. d4 {[%emt 0:02:17]} O-O {[%emt 0:12:11]} 8. a3 {[%emt 0:03:44]} Re8 {[%emt 0:13:09]} 9. d5 {[%emt 0:04:48]} Nb8 {[%emt 0:00:10]} 10. b4 {[%emt 0:00:13]} Nbd7 {[%emt 0:04:05]} 11. Qc2 {[%emt 0:02:19]} Bf8 {[%emt 0:00:52]} 12. Nd2 {[%emt 0:04:27]} g6 {[%emt 0:02:34]} 13. Bb2 {[%emt 0:01:06]} h6 {[%emt 0:02:44]} 14. f4 {[%emt 0:08:04]} cxb4 {[%emt 0:05:47]} 15. axb4 {[%emt 0:00:11]} exf4 {[%emt 0:01:17]} 16. Nce4 {[%emt 0:06:31]} Nxe4 {[%emt 0:02:24]} 17. Nxe4 {[%emt 0:00:07]} Qe7 {[%emt 0:30:55]} 18. Rxf4 {[%emt 0:10:25]} f5 {[%emt 0:00:59]} 19. Qc3 {[%emt 0:30:17]} Qe5 {[%emt 0:00:29]} 20. Qb3 {[%emt 0:01:04]} Qe7 {[%emt 0:00:06]} 21. Nxd6 {[%emt 0:03:47]} Qxe3+ {[%emt 0:04:58]} 22. Qxe3 {[%emt 0:00:06]} Rxe3 {[%emt 0:00:04]} 23. Rf2 {[%emt 0:05:00]} Bxd6 {[%emt 0:00:25]} 24. Bd4 {[%emt 0:00:12]} Re4 {[%emt 0:00:18]} 25. Bc3 {[%emt 0:00:37]} Be5 {[%emt 0:00:11]} 26. Rc1 {[%emt 0:01:35]} Bxc3 {[%emt 0:00:53]} 27. Rxc3 {[%emt 0:00:01]} Nb6 {[%emt 0:00:53]} 28. Bd3 {[%emt 0:02:24]} Re1+ {[%emt 0:00:04]} 29. Rf1 {[%emt 0:00:05]} Rxf1+ {[%emt 0:00:17]} 30. Kxf1 {[%emt 0:00:01]} Bd7 {[%emt 0:00:18]} 31. c5 {[%emt 0:02:02]} Nxd5 {[%emt 0:00:13]} 32. Bc4 {[%emt 0:00:05]} Be6 {[%emt 0:00:03]} 33. Kf2 {[%emt 0:01:17]} Nxc3 {[%emt 0:00:10]} 0-1

[Event "12th Arad Open 2019"]
[Site "Arad"]
[Date "2019.07.26"]
[Round "4.40"]
[White "Ion, Dragos-Cosmin"]
[Black "Mitran, Anthony Cristian"]
[Result "0-1"]
[ECO "B06"]
[WhiteElo "1879"]
[BlackElo "2089"]
[Annotator "NA"]
[PlyCount "134"]
[EventDate "2019.07.24"]
[EventType "swiss"]
[EventCountry "ROU"]
[SourceTitle "playchess.com"]
[Source "ChessBase"]
[SourceQuality "1"]
[TimeControl "40/5400+30:900+30"]

1. e4 {[%emt 0:00:00]} g6 {[%emt 0:00:00]} 2. d4 {[%emt 0:00:00]} Bg7 {[%emt 0:00:00]} 3. Nc3 {[%emt 0:00:00]} c6 {[%emt 0:00:00]} 4. f4 {[%emt 0:01:04]} d5 {[%emt 0:00:00]} 5. e5 {[%emt 0:00:10]} Nh6 {[%emt 0:00:16]} 6. Nf3 {[%emt 0:00:34]} Bg4 {[%emt 0:00:02]} 7. h3 {[%emt 0:00:36]} Bxf3 {[%emt 0:00:16]} 8. Qxf3 {[%emt 0:00:09]} e6 {[%emt 0:00:02]} 9. Be3 {[%emt 0:01:42]} Nf5 {[%emt 0:03:20]} 10. Bf2 {[%emt 0:02:19]} Nd7 {[%emt 0:03:56]} 11. Bd3 {[%emt 0:01:33]} Rc8 {[%emt 0:02:39]} 12. g4 {[%emt 0:03:11]} Ne7 {[%emt 0:01:56]} 13. O-O {[%emt 0:00:51]} O-O {[%emt 0:00:54]} 14. Bh4 {[%emt 0:07:36]} c5 {[%emt 0:01:53]} 15. Nb5 {[%emt 0:02:29]} cxd4 {[%emt 0:02:23]} 16. Nxa7 {[%emt 0:02:49]} Ra8 {[%emt 0:00:48]} 17. Nb5 {[%emt 0:00:08]} f6 {[%emt 0:05:02]} 18. exf6 {[%emt 0:08:39]} Bxf6 {[%emt 0:01:53]} 19. Bxf6 {[%emt 0:00:15]} Rxf6 {[%emt 0:00:10]} 20. Qe2 {[%emt 0:04:08]} Qb6 {[%emt 0:02:53]} 21. b4 {[%emt 0:06:02]} Raf8 {[%emt 0:03:06]} 22. Rae1 {[%emt 0:05:56]} Nc6 {[%emt 0:18:44]} 23. g5 {[%emt 0:07:39]} R6f7 {[%emt 0:00:01]} 24. Qxe6 {[%emt 0:01:41]} Nxb4 {[%emt 0:00:08]} 25. Qxb6 {[%emt 0:08:21]} Nxb6 {[%emt 0:04:52]} 26. Nxd4 {[%emt 0:08:18]} Nxd3 {[%emt 0:01:26]} 27. cxd3 {[%emt 0:00:03]} Rxf4 {[%emt 0:00:07]} 28. Ne6 {[%emt 0:00:48]} Rxf1+ {[%emt 0:00:03]} 29. Rxf1 {[%emt 0:00:01]} Re8 {[%emt 0:02:46]} 30. Nc5 {[%emt 0:02:12]} d4 {[%emt 0:12:56]} 31. Ne4 {[%emt 0:07:08]} Re7 {[%emt 0:10:59]} 32. Kg2 {[%emt 0:03:14]} Kg7 {[%emt 0:03:40]} 33. Kg3 {[%emt 0:01:02]} Nd5 {[%emt 0:01:48]} 34. Rb1 {[%emt 0:05:53]} b6 {[%emt 0:06:54]} 35. a4 {[%emt 0:03:05]} Re6 {[%emt 0:07:30]} 36. Rc1 {[%emt 0:04:02]} Nb4 {[%emt 0:00:01]} 37. Rc7+ {[%emt 0:00:06]} Kf8 {[%emt 0:00:09]} 38. Rd7 {[%emt 0:01:15]} Nxd3 {[%emt 0:01:01]} 39. Rxd4 {[%emt 0:00:06]} Ne5 {[%emt 0:00:44]} 40. Nf6 {[%emt 0:00:00]} Kg7 {[%emt 0:00:00]} 41. Rd8 {[%emt 0:05:54]} h5 {[%emt 0:03:29]} 42. gxh6+ {[%emt 0:07:38]} Kxh6 {[%emt 0:00:46]} 43. Nd5 {[%emt 0:01:19]} Nc4 {[%emt 0:01:10]} 44. Rb8 {[%emt 0:02:25]} Rd6 {[%emt 0:01:48]} 45. Nf4 {[%emt 0:00:23]} g5 {[%emt 0:02:07]} 46. Ne2 {[%emt 0:00:15]} Rd2 {[%emt 0:01:41]} 47. Rc8 {[%emt 0:02:23]} Nb2 {[%emt 0:05:07]} 48. Nc3 {[%emt 0:01:53]} Rc2 {[%emt 0:00:26]} 49. Rc6+ {[%emt 0:01:31]} Kh5 {[%emt 0:00:26]} 50. Rc8 {[%emt 0:00:15]} Kg6 {[%emt 0:00:03]} 51. Kg4 {[%emt 0:00:53]} Nxa4 {[%emt 0:01:01]} 52. Rc6+ {[%emt 0:00:05]} Kf7 {[%emt 0:00:55]} 53. Rc7+ {[%emt 0:00:04]} Ke6 {[%emt 0:01:19]} 54. Nb5 {[%emt 0:00:24]} Rg2+ {[%emt 0:00:42]} 55. Kf3 {[%emt 0:00:24]} Rb2 {[%emt 0:00:13]} 56. Nd4+ {[%emt 0:00:45]} Ke5 {[%emt 0:00:44]} 57. Ne2 {[%emt 0:00:55]} Nc5 {[%emt 0:00:15]} 58. Re7+ {[%emt 0:00:20]} Kf6 {[%emt 0:00:19]} 59. Rc7 {[%emt 0:00:14]} Ne6 {[%emt 0:00:30]} 60. Rc3 {[%emt 0:01:21]} b5 {[%emt 0:00:28]} 61. Ng3 {[%emt 0:00:14]} b4 {[%emt 0:00:21]} 62. Re3 {[%emt 0:00:23]} Nc7 {[%emt 0:01:49]} 63. Ne4+ {[%emt 0:00:17]} Kg6 {[%emt 0:00:18]} 64. Nc5 {[%emt 0:00:45]} Nd5 {[%emt 0:01:00]} 65. Rd3 {[%emt 0:00:11]} Nf4 {[%emt 0:00:16]} 66. Rd6+ {[%emt 0:00:48]} Kf5 {[%emt 0:00:26]} 67. Rb6 {[%emt 0:00:10]} Nxh3 {[%emt 0:00:30]} 0-1

[Event "12th Arad Open 2019"]
[Site "Arad"]
[Date "2019.07.27"]
[Round "5.1"]
[White "Mastrovasilis, Dimitrios"]
[Black "Schitco, Ivan"]
[Result "1-0"]
[ECO "B07"]
[WhiteElo "2589"]
[BlackElo "2462"]
[Annotator "ChessBase"]
[PlyCount "55"]
[EventDate "2019.07.24"]
[EventType "swiss"]
[EventCountry "ROU"]
[SourceTitle "playchess.com"]
[Source "ChessBase"]
[SourceQuality "1"]
[TimeControl "40/5400+30:900+30"]

1. e4 {[%emt 0:04:18]} d6 {[%emt 0:00:00]} 2. d4 {[%emt 0:00:31]} Nf6 {[%emt 0:00:00]} 3. Nc3 {[%emt 0:00:09]} g6 {[%emt 0:00:09]} 4. Be3 {[%emt 0:00:18]} c6 {[%emt 0:00:44]} 5. Qd2 {[%emt 0:00:19]} Nbd7 {[%emt 0:01:16]} 6. Nf3 {[%emt 0:00:37]} Bg7 {[%emt 0:11:55]} 7. Bh6 {[%emt 0:03:39]} Bxh6 {[%emt 0:05:15]} 8. Qxh6 {[%emt 0:00:12]} e5 {[%emt 0:02:59]} 9. dxe5 {[%emt 0:15:25]} Nxe5 {[%emt 0:11:26]} 10. O-O-O {[%emt 0:09:03]} Bg4 {[%emt 0:06:30]} 11. Nxe5 {[%emt 0:24:59]} Bxd1 {[%emt 0:00:21]} 12. Nxf7 {[%emt 0:00:09]} Kxf7 {[%emt 0:01:16]} 13. Bc4+ {[%emt 0:00:08]} Ke8 {[%emt 0:00:56]} 14. Rxd1 {[%emt 0:01:28]} Qe7 {[%emt 0:01:51]} 15. Qe3 {[%emt 0:05:49]} Ng4 {[%emt 0:14:00]} 16. Qg3 {[%emt 0:02:53]} Ne5 {[%emt 0:03:51]} 17. Bb3 {[%emt 0:00:14]} Kf8 {[%emt 0:04:54]} 18. Ne2 {[%emt 0:06:33]} Nf7 {[%emt 0:04:27]} 19. Nf4 {[%emt 0:05:25]} Qg5 {[%emt 0:01:58]} 20. Qe3 {[%emt 0:01:18]} Re8 {[%emt 0:02:26]} 21. g3 {[%emt 0:03:16]} Re7 {[%emt 0:07:03]} 22. Rxd6 {[%emt 0:03:23]} Kg7 {[%emt 0:13:49]} 23. Ne6+ {[%emt 0:06:36]} Rxe6 {[%emt 0:00:06]} 24. Rxe6 {[%emt 0:00:29]} Rd8 {[%emt 0:01:44]} 25. Qxg5 {[%emt 0:02:19]} Nxg5 {[%emt 0:00:02]} 26. Re7+ {[%emt 0:00:39]} Kf6 {[%emt 0:00:06]} 27. Rxb7 {[%emt 0:00:20]} Nxe4 {[%emt 0:00:07]} 28. Rxa7 {[%emt 0:00:28]} 1-0

[Event "12th Arad Open 2019"]
[Site "Arad"]
[Date "2019.07.27"]
[Round "5.2"]
[White "Costachi, Mihnea"]
[Black "Istratescu, Andrei"]
[Result "1/2-1/2"]
[ECO "D14"]
[WhiteElo "2471"]
[BlackElo "2555"]
[Annotator "ChessBase"]
[PlyCount "23"]
[EventDate "2019.07.24"]
[EventType "swiss"]
[EventCountry "ROU"]
[SourceTitle "playchess.com"]
[Source "ChessBase"]
[SourceQuality "1"]
[TimeControl "40/5400+30:900+30"]

1. Nf3 {[%emt 0:00:00]} d5 {[%emt 0:00:00]} 2. d4 {[%emt 0:00:00]} Nf6 {[%emt 0:00:00]} 3. c4 {[%emt 0:00:00]} c6 {[%emt 0:00:00]} 4. cxd5 {[%emt 0:00:01]} cxd5 {[%emt 0:00:03]} 5. Nc3 {[%emt 0:00:11]} Nc6 {[%emt 0:00:03]} 6. Bf4 {[%emt 0:00:24]} Bf5 {[%emt 0:00:04]} 7. e3 {[%emt 0:00:13]} e6 {[%emt 0:00:04]} 8. Bd3 {[%emt 0:00:13]} Bxd3 {[%emt 0:00:04]} 9. Qxd3 {[%emt 0:00:04]} Bd6 {[%emt 0:00:04]} 10. Bxd6 {[%emt 0:00:12]} Qxd6 {[%emt 0:00:02]} 11. O-O {[%emt 0:00:17]} O-O {[%emt 0:00:03]} 12. Rfc1 {[%emt 0:00:14]} 1/2-1/2

[Event "12th Arad Open 2019"]
[Site "Arad"]
[Date "2019.07.27"]
[Round "5.3"]
[White "Gorodetzky, David"]
[Black "Barrish, Daniel"]
[Result "1-0"]
[ECO "E46"]
[WhiteElo "2461"]
[BlackElo "2237"]
[Annotator "ChessBase"]
[PlyCount "121"]
[EventDate "2019.07.24"]
[EventType "swiss"]
[EventCountry "ROU"]
[SourceTitle "playchess.com"]
[Source "ChessBase"]
[SourceQuality "1"]
[TimeControl "40/5400+30:900+30"]

1. d4 {[%emt 0:00:00]} Nf6 {[%emt 0:00:00]} 2. c4 {[%emt 0:01:54]} e6 {[%emt 0:00:00]} 3. Nc3 {[%emt 0:00:15]} Bb4 {[%emt 0:00:04]} 4. e3 {[%emt 0:00:09]} O-O {[%emt 0:00:20]} 5. Nge2 {[%emt 0:00:07]} d5 {[%emt 0:00:20]} 6. a3 {[%emt 0:02:27]} Be7 {[%emt 0:00:07]} 7. cxd5 {[%emt 0:02:05]} exd5 {[%emt 0:00:06]} 8. Nf4 {[%emt 0:00:34]} c6 {[%emt 0:00:07]} 9. Bd3 {[%emt 0:01:40]} Na6 {[%emt 0:00:09]} 10. O-O {[%emt 0:12:21]} Nc7 {[%emt 0:00:04]} 11. b4 {[%emt 0:05:43]} Ne6 {[%emt 0:00:20]} 12. Nxe6 {[%emt 0:03:02]} Bxe6 {[%emt 0:00:07]} 13. h3 {[%emt 0:01:55]} Ne8 {[%emt 0:06:02]} 14. b5 {[%emt 0:05:32]} cxb5 {[%emt 0:02:28]} 15. Nxb5 {[%emt 0:00:27]} a6 {[%emt 0:06:11]} 16. Nc3 {[%emt 0:00:03]} Rc8 {[%emt 0:11:21]} 17. Bd2 {[%emt 0:03:33]} b5 {[%emt 0:05:00]} 18. Qf3 {[%emt 0:00:45]} g6 {[%emt 0:08:06]} 19. Rfd1 {[%emt 0:08:54]} f5 {[%emt 0:02:12]} 20. Ne2 {[%emt 0:00:45]} Nf6 {[%emt 0:01:57]} 21. Bb4 {[%emt 0:02:06]} Ne4 {[%emt 0:01:00]} 22. Bxe7 {[%emt 0:03:03]} Qxe7 {[%emt 0:00:13]} 23. a4 {[%emt 0:00:42]} Bd7 {[%emt 0:04:30]} 24. axb5 {[%emt 0:06:55]} Bxb5 {[%emt 0:00:33]} 25. Nf4 {[%emt 0:06:33]} g5 {[%emt 0:09:30]} 26. Bxe4 {[%emt 0:02:05]} dxe4 {[%emt 0:21:45]} 27. Qg3 {[%emt 0:00:07]} Kh8 {[%emt 0:02:57]} 28. Nd5 {[%emt 0:00:25]} Qe6 {[%emt 0:02:33]} 29. Nc7 {[%emt 0:04:29]} Qf6 {[%emt 0:00:36]} 30. Nxb5 {[%emt 0:04:29]} axb5 {[%emt 0:00:05]} 31. Qe5 {[%emt 0:03:27]} Qxe5 {[%emt 0:00:06]} 32. dxe5 {[%emt 0:00:02]} Rfd8 {[%emt 0:04:55]} 33. Rd6 {[%emt 0:04:59]} Rxd6 {[%emt 0:00:50]} 34. exd6 {[%emt 0:00:03]} Kg7 {[%emt 0:05:09]} 35. Rb1 {[%emt 0:02:50]} Kf6 {[%emt 0:01:51]} 36. Rxb5 {[%emt 0:00:26]} Rd8 {[%emt 0:00:44]} 37. g4 {[%emt 0:01:45]} fxg4 {[%emt 0:01:37]} 38. hxg4 {[%emt 0:00:03]} Rxd6 {[%emt 0:03:13]} 39. Rf5+ {[%emt 0:00:03]} Kg6 {[%emt 0:01:26]} 40. Re5 {[%emt 0:00:00]} h5 {[%emt 0:00:00]} 41. gxh5+ {[%emt 0:02:21]} Kxh5 {[%emt 0:00:14]} 42. Kg2 {[%emt 0:00:31]} Kg4 {[%emt 0:01:23]} 43. Rxe4+ {[%emt 0:01:19]} Kf5 {[%emt 0:00:07]} 44. Ra4 {[%emt 0:00:07]} Rb6 {[%emt 0:00:23]} 45. Kf3 {[%emt 0:01:31]} Rb5 {[%emt 0:01:12]} 46. Ra8 {[%emt 0:00:47]} Rb2 {[%emt 0:02:14]} 47. Ra6 {[%emt 0:05:40]} Ke5 {[%emt 0:01:53]} 48. Ra5+ {[%emt 0:00:55]} Kf6 {[%emt 0:00:07]} 49. Ra6+ {[%emt 0:00:04]} Ke5 {[%emt 0:00:05]} 50. Ra8 {[%emt 0:01:55]} Rb4 {[%emt 0:02:07]} 51. Rf8 {[%emt 0:00:32]} Ra4 {[%emt 0:00:47]} 52. Kg3 {[%emt 0:00:55]} Ke6 {[%emt 0:00:53]} 53. f3 {[%emt 0:01:20]} Ra1 {[%emt 0:01:13]} 54. e4 {[%emt 0:00:26]} Ra5 {[%emt 0:09:44]} 55. Kg4 {[%emt 0:00:29]} Rb5 {[%emt 0:00:09]} 56. Kh5 {[%emt 0:00:17]} Ra5 {[%emt 0:00:33]} 57. Kg6 {[%emt 0:00:28]} g4 {[%emt 0:00:50]} 58. fxg4 {[%emt 0:00:27]} Ra4 {[%emt 0:00:08]} 59. g5 {[%emt 0:00:34]} Ke5 {[%emt 0:00:31]} 60. Re8+ {[%emt 0:00:28]} Kf4 {[%emt 0:00:07]} 61. Kf6 {[%emt 0:00:40]} 1-0

[Event "12th Arad Open 2019"]
[Site "Arad"]
[Date "2019.07.27"]
[Round "5.4"]
[White "Ileana, George"]
[Black "David, Alexandru-Vasile"]
[Result "1/2-1/2"]
[ECO "A04"]
[WhiteElo "2344"]
[BlackElo "2428"]
[Annotator "NA"]
[PlyCount "134"]
[EventDate "2019.07.24"]
[EventType "swiss"]
[EventCountry "ROU"]
[SourceTitle "playchess.com"]
[Source "ChessBase"]
[SourceQuality "1"]
[TimeControl "40/5400+30:900+30"]

1. Nf3 {[%emt 0:00:00]} c5 {[%emt 0:02:01]} 2. c4 {[%emt 0:00:00]} Nc6 {[%emt 0:00:34]} 3. Nc3 {[%emt 0:00:00]} e5 {[%emt 0:02:47]} 4. d3 {[%emt 0:00:15]} g6 {[%emt 0:00:35]} 5. g3 {[%emt 0:00:13]} Bg7 {[%emt 0:03:39]} 6. Bg2 {[%emt 0:00:04]} Nge7 {[%emt 0:00:04]} 7. O-O {[%emt 0:00:08]} O-O {[%emt 0:02:03]} 8. Ne1 {[%emt 0:00:10]} d6 {[%emt 0:00:10]} 9. Nc2 {[%emt 0:00:08]} Be6 {[%emt 0:00:33]} 10. Ne3 {[%emt 0:00:09]} Qd7 {[%emt 0:00:55]} 11. Rb1 {[%emt 0:00:39]} Bh3 {[%emt 0:00:39]} 12. Ned5 {[%emt 0:00:30]} Bxg2 {[%emt 0:05:27]} 13. Kxg2 {[%emt 0:00:05]} f5 {[%emt 0:00:11]} 14. Bg5 {[%emt 0:03:36]} Nxd5 {[%emt 0:03:07]} 15. cxd5 {[%emt 0:00:26]} Nb4 {[%emt 0:01:06]} 16. a3 {[%emt 0:00:37]} Na6 {[%emt 0:00:04]} 17. Qa4 {[%emt 0:00:40]} Qf7 {[%emt 0:01:30]} 18. Qh4 {[%emt 0:00:15]} Rae8 {[%emt 0:12:43]} 19. e4 {[%emt 0:00:25]} Qd7 {[%emt 0:04:25]} 20. b4 {[%emt 0:02:39]} cxb4 {[%emt 0:03:00]} 21. axb4 {[%emt 0:00:06]} b5 {[%emt 0:03:55]} 22. Be3 {[%emt 0:02:33]} f4 {[%emt 0:04:24]} 23. Bd2 {[%emt 0:00:08]} Bf6 {[%emt 0:01:27]} 24. Qh6 {[%emt 0:00:05]} Bg7 {[%emt 0:06:16]} 25. Qh4 {[%emt 0:00:10]} f3+ {[%emt 0:09:24]} 26. Kh1 {[%emt 0:00:30]} Rc8 {[%emt 0:00:02]} 27. h3 {[%emt 0:03:03]} h5 {[%emt 0:00:45]} 28. g4 {[%emt 0:00:05]} Bf6 {[%emt 0:05:26]} 29. Qg3 {[%emt 0:02:13]} hxg4 {[%emt 0:00:04]} 30. Rg1 {[%emt 0:01:31]} Bg5 {[%emt 0:02:39]} 31. Bxg5 {[%emt 0:01:49]} Rxc3 {[%emt 0:00:29]} 32. Qxg4 {[%emt 0:00:03]} Qxg4 {[%emt 0:01:46]} 33. Rxg4 {[%emt 0:00:11]} Rf7 {[%emt 0:00:20]} 34. Be3 {[%emt 0:07:54]} Kh7 {[%emt 0:02:03]} 35. d4 {[%emt 0:00:52]} Rxe3 {[%emt 0:00:51]} 36. fxe3 {[%emt 0:00:18]} f2 {[%emt 0:00:47]} 37. Kg2 {[%emt 0:05:10]} Nxb4 {[%emt 0:00:04]} 38. dxe5 {[%emt 0:00:43]} dxe5 {[%emt 0:02:58]} 39. Rg3 {[%emt 0:00:53]} Nd3 {[%emt 0:01:21]} 40. Kf1 {[%emt 0:00:00]} a6 {[%emt 0:00:00]} 41. Rd1 {[%emt 0:04:28]} Nc5 {[%emt 0:09:49]} 42. d6 {[%emt 0:00:32]} b4 {[%emt 0:04:45]} 43. Rg2 {[%emt 0:01:22]} Rd7 {[%emt 0:02:51]} 44. Rxf2 {[%emt 0:00:44]} Nxe4 {[%emt 0:01:12]} 45. Rb2 {[%emt 0:00:53]} a5 {[%emt 0:04:14]} 46. Rd5 {[%emt 0:04:03]} Rxd6 {[%emt 0:00:21]} 47. Rxa5 {[%emt 0:00:38]} Kh6 {[%emt 0:07:41]} 48. Rxb4 {[%emt 0:00:49]} Rd1+ {[%emt 0:00:34]} 49. Ke2 {[%emt 0:01:44]} Nc3+ {[%emt 0:00:17]} 50. Kf3 {[%emt 0:01:38]} e4+ {[%emt 0:00:18]} 51. Kg3 {[%emt 0:04:07]} Rd3 {[%emt 0:01:26]} 52. Kg4 {[%emt 0:07:15]} Nd5 {[%emt 0:01:43]} 53. Rxd5 {[%emt 0:00:47]} Rxd5 {[%emt 0:00:09]} 54. Rxe4 {[%emt 0:00:02]} Kg7 {[%emt 0:00:16]} 55. Rd4 {[%emt 0:00:33]} Re5 {[%emt 0:00:28]} 56. e4 {[%emt 0:00:20]} Kf6 {[%emt 0:01:40]} 57. h4 {[%emt 0:01:42]} Ra5 {[%emt 0:00:01]} 58. Rd6+ {[%emt 0:04:24]} Kf7 {[%emt 0:00:03]} 59. Rd5 {[%emt 0:05:33]} Ra1 {[%emt 0:00:06]} 60. e5 {[%emt 0:00:46]} Ke6 {[%emt 0:01:45]} 61. Rd6+ {[%emt 0:01:21]} Kxe5 {[%emt 0:00:41]} 62. Rxg6 {[%emt 0:00:04]} Rg1+ {[%emt 0:01:57]} 63. Kh5 {[%emt 0:00:04]} Rh1 {[%emt 0:00:04]} 64. Kg5 {[%emt 0:00:02]} Rg1+ {[%emt 0:00:20]} 65. Kh6 {[%emt 0:00:01]} Rh1 {[%emt 0:00:05]} 66. h5 {[%emt 0:00:07]} Kf5 {[%emt 0:00:03]} 67. Ra6 {[%emt 0:00:14]} Rh2 {[%emt 0:00:06]} 1/2-1/2